fUST/lending_fUST_20240804
["ID","MTS","AMOUNT","RATE_DAILY","PERIOD"]
[334084118,1722751840221,-500.0,0.00015496,2]
[334084120,1722751840231,-500.0,0.00015496,2]
[334084122,1722751840241,-500.0,0.00015496,2]
[334084124,1722751840252,-500.0,0.00015496,2]
[334084126,1722751840262,-500.0,0.00015496,2]
[334084129,1722751840274,-500.0,0.00015496,2]
[334084131,1722751840285,-500.0,0.00015496,2]
[334084133,1722751840295,-548.36820562,0.00015496,2]
[334084135,1722751840306,-151.0,0.00015496,2]
[334084137,1722751840317,-500.0,0.00015496,2]
[334084139,1722751840326,-500.0,0.00015496,2]
[334084142,1722751840338,-500.0,0.00015496,2]
[334084144,1722751840348,-500.0,0.00015496,2]
[334084146,1722751840362,-500.0,0.00015496,2]
[334084148,1722751840373,-500.0,0.00015496,2]
[334084150,1722751840385,-507.66523356,0.00015496,2]
[334084153,1722751840394,-500.0,0.00015496,2]
[334084155,1722751840405,-500.0,0.00015496,2]
[334084157,1722751840417,-500.0,0.00015496,2]
[334084159,1722751840428,-500.0,0.00015496,2]
[334084161,1722751840443,-551.55945524,0.00015496,2]
[334084163,1722751840454,-500.0,0.00015496,2]
[334084165,1722751840465,-500.0,0.00015496,2]
[334084168,1722751840478,-550.21483176,0.00015496,2]
[334084170,1722751840488,-500.0,0.00015496,2]
[334084172,1722751840499,-590.30117116,0.00015496,2]
[334084174,1722751840511,-500.0,0.00015496,2]
[334084176,1722751840523,-554.89723758,0.00015496,2]
[334084179,1722751840533,-500.0,0.00015496,2]
[334084181,1722751840543,-500.0,0.00015496,2]
[334084183,1722751840552,-500.0,0.00015496,2]
[334084185,1722751840561,-500.0,0.00015496,2]
[334084187,1722751840570,-500.0,0.00015496,2]
[334084188,1722751840579,-500.0,0.00015496,2]
[334084190,1722751840589,-500.0,0.00015496,2]
[334084193,1722751840601,-500.0,0.00015496,2]
[334084195,1722751840611,-513.16342299,0.00015496,2]
[334084197,1722751840621,-500.0,0.00015496,2]
[334084199,1722751840630,-446.93299994,0.00015496,2]
[334084201,1722751840639,-551.97,0.00015496,2]
[334084203,1722751840651,-500.0,0.00015496,2]
[334084205,1722751840662,-302.09328663,0.00015496,2]
[334084285,1722751841414,-197.90671337,0.00015496,2]
[334084287,1722751841424,-500.0,0.00015496,2]
[334084288,1722751841434,-500.0,0.00015496,2]
[334084290,1722751841451,-500.0,0.00015496,2]
[334084292,1722751841461,-500.0,0.00015496,2]
[334084294,1722751841470,-506.43463454,0.00015496,2]
[334084296,1722751841479,-226.31575498,0.00015496,2]
[334084298,1722751841489,-500.0,0.00015496,2]
[334084300,1722751841501,-506.0252108,0.00015496,2]
[334084302,1722751841510,-500.0,0.00015496,2]
[334084304,1722751841519,-500.0,0.00015496,2]
[334084306,1722751841529,-500.0,0.00015496,2]
[334084308,1722751841539,-500.0,0.00015496,2]
[334084310,1722751841548,-500.0,0.00015496,2]
[334084312,1722751841557,-500.0,0.00015496,2]
[334084314,1722751841566,-500.0,0.00015496,2]
[334084316,1722751841575,-519.42702461,0.00015496,2]
[334084318,1722751841584,-507.34818783,0.00015496,2]
[334084320,1722751841593,-504.10445539,0.00015496,2]
[334084322,1722751841604,-500.0,0.00015496,2]
[334084324,1722751841613,-500.0,0.00015496,2]
[334084326,1722751841623,-500.0,0.00015496,2]
[334084328,1722751841632,-500.0,0.00015496,2]
[334084330,1722751841641,-500.0,0.00015496,2]
[334084332,1722751841651,-500.0,0.00015496,2]
[334084334,1722751841660,-331.7991971,0.00015496,2]
[334084336,1722751841669,-500.0,0.00015496,2]
[334084338,1722751841678,-287.23758285,0.00015496,2]
[334084339,1722751841687,-500.0,0.00015496,2]
[334084341,1722751841697,-323.93658336,0.00015496,2]
[334084343,1722751841706,-500.0,0.00015496,2]
[334084345,1722751841716,-500.0,0.00015496,2]
[334084347,1722751841725,-500.0,0.00015496,2]
[334084349,1722751841734,-500.0,0.00015496,2]
[334084351,1722751841743,-500.0,0.00015496,2]
[334084353,1722751841753,-500.0,0.00015496,2]
[334084355,1722751841762,-500.0,0.00015496,2]
[334084357,1722751841771,-500.0,0.00015496,2]
[334084359,1722751841780,-500.0,0.00015496,2]
[334084361,1722751841789,-306.9574456,0.00015496,2]
[334084363,1722751841798,-500.0,0.00015496,2]
[334084365,1722751841807,-500.0,0.00015496,2]
[334084367,1722751841817,-500.0,0.00015496,2]
[334084369,1722751841826,-500.0,0.00015496,2]
[334084371,1722751841835,-500.0,0.00015496,2]
[334084373,1722751841844,-500.0,0.00015496,2]
[334084375,1722751841854,-500.0,0.00015496,2]
[334084377,1722751841864,-500.0,0.00015496,2]
[334084379,1722751841873,-500.0,0.00015496,2]
[334084381,1722751841882,-500.0,0.00015496,2]
[334084383,1722751841891,-500.0,0.00015496,2]
[334084385,1722751841901,-500.0,0.00015496,2]
[334084387,1722751841910,-500.0,0.00015496,2]
[334084389,1722751841919,-500.0,0.00015496,2]
[334084391,1722751841929,-500.0,0.00015496,2]
[334084393,1722751841938,-500.0,0.00015496,2]
[334084395,1722751841947,-500.0,0.00015496,2]
[334084396,1722751841961,-290.0,0.00015496,2]
[334084397,1722751841975,-507.56062931,0.00015496,2]
[334084398,1722751841984,-500.0,0.00015496,2]
[334084399,1722751841993,-500.0,0.00015496,2]
[334084400,1722751842003,-500.0,0.00015496,2]
[334084401,1722751842016,-501.39095827,0.00015496,2]
[334084402,1722751842024,-500.0,0.00015496,2]
[334084403,1722751842033,-500.0,0.00015496,2]
[334084404,1722751842042,-500.0,0.00015496,2]
[334084405,1722751842051,-500.0,0.00015496,2]
[334084406,1722751842061,-500.0,0.00015496,2]
[334084407,1722751842071,-539.97,0.00015496,2]
[334084408,1722751842081,-539.97,0.00015496,2]
[334084409,1722751842091,-539.97,0.00015496,2]
[334084410,1722751842100,-500.0,0.00015496,2]
[334084411,1722751842111,-500.0,0.00015496,2]
[334084412,1722751842120,-500.0,0.00015496,2]
[334084413,1722751842132,-500.0,0.00015496,2]
[334084414,1722751842144,-506.02981527,0.00015496,2]
[334084417,1722751842153,-500.0,0.00015496,2]
[334084419,1722751842254,-151.0,0.00015496,2]
[334084421,1722751842263,-151.0,0.00015496,2]
[334084423,1722751842273,-151.0,0.00015496,2]
[334084425,1722751842283,-151.0,0.00015496,2]
[334084427,1722751842292,-212.503164,0.00015496,2]
[334084429,1722751842302,-300.54956913,0.00015496,2]
[334084431,1722751842311,-500.0,0.00015496,2]
[334084433,1722751842321,-151.0,0.00015496,2]
[334084435,1722751842330,-151.0,0.00015496,2]
[334084437,1722751842339,-151.0,0.00015496,2]
[334084439,1722751842348,-35.60256242,0.00015496,2]
[334084460,1722751842543,-115.39743758,0.00015496,2]
[334084462,1722751842552,-151.0,0.00015496,2]
[334084464,1722751842561,-500.0,0.00015496,2]
[334084466,1722751842571,-506.47633937,0.00015496,2]
[334084468,1722751842581,-500.0,0.00015496,2]
[334084470,1722751842591,-504.476711,0.00015496,2]
[334084472,1722751842600,-500.0,0.00015496,2]
[334084474,1722751842616,-151.0,0.00015496,2]
[334084476,1722751842628,-151.0,0.00015496,2]
[334084478,1722751842637,-151.0,0.00015496,2]
[334084480,1722751842647,-151.0,0.00015496,2]
[334084482,1722751842657,-151.0,0.00015496,2]
[334084483,1722751842666,-500.0,0.00015496,2]
[334084485,1722751842676,-500.0,0.00015496,2]
[334084487,1722751842685,-500.0,0.00015496,2]
[334084489,1722751842694,-500.0,0.00015496,2]
[334084491,1722751842704,-500.0,0.00015496,2]
[334084493,1722751842713,-500.0,0.00015496,2]
[334084495,1722751842723,-500.0,0.00015496,2]
[334084497,1722751842732,-151.0,0.00015496,2]
[334084499,1722751842742,-151.0,0.00015496,2]
[334084501,1722751842751,-462.02195341,0.00015496,2]
[334084503,1722751842760,-151.0,0.00015496,2]
[334084505,1722751842770,-504.77057093,0.00015496,2]
[334084507,1722751842779,-151.0,0.00015496,2]
[334084509,1722751842789,-151.0,0.00015496,2]
[334084511,1722751842798,-500.0,0.00015496,2]
[334084513,1722751842807,-500.0,0.00015496,2]
[334084515,1722751842817,-503.71729124,0.00015496,2]
[334084517,1722751842827,-645.61019121,0.00015496,2]
[334084519,1722751842836,-500.0,0.00015496,2]
[334084521,1722751842845,-500.0,0.00015496,2]
[334084523,1722751842856,-151.0,0.00015496,2]
[334084525,1722751842865,-151.0,0.00015496,2]
[334084527,1722751842875,-151.0,0.00015496,2]
[334084529,1722751842884,-500.0,0.00015496,2]
[334084531,1722751842894,-151.0,0.00015496,2]
[334084533,1722751842903,-151.0,0.00015496,2]
[334084535,1722751842913,-500.0,0.00015496,2]
[334084538,1722751842923,-151.0,0.00015496,2]
[334084541,1722751842933,-151.0,0.00015496,2]
[334084544,1722751842943,-151.0,0.00015496,2]
[334084546,1722751842953,-151.0,0.00015496,2]
[334084548,1722751842963,-500.0,0.00015496,2]
[334084550,1722751842972,-151.0,0.00015496,2]
[334084552,1722751842981,-232.66680472,0.00015496,2]
[334084554,1722751842992,-500.0,0.00015496,2]
[334084557,1722751843002,-500.0,0.00015496,2]
[334084559,1722751843011,-500.0,0.00015496,2]
[334084561,1722751843020,-500.0,0.00015496,2]
[334084563,1722751843030,-500.0,0.00015496,2]
[334084565,1722751843039,-500.0,0.00015496,2]
[334084566,1722751843049,-500.0,0.00015496,2]
[334084568,1722751843058,-500.0,0.00015496,2]
[334084570,1722751843067,-500.0,0.00015496,2]
[334084572,1722751843076,-500.0,0.00015496,2]
[334084574,1722751843085,-500.0,0.00015496,2]
[334084576,1722751843094,-500.0,0.00015496,2]
[334084578,1722751843103,-121.36885617,0.00015496,2]
[334085045,1722751848856,-461.15,0.00015485,2]
[334085046,1722751848868,-275.72080341,0.00015486,2]
[334085090,1722752836138,-750.0,0.00014247,2]
[334085091,1722752836160,-127.31233182,0.00014286,2]
[334085093,1722752839418,-945.37221583,0.00014286,2]
[334085094,1722752843282,-1927.31545235,0.00014286,2]
[334085095,1722752843307,-1029.57638,0.00014304,2]
[334085096,1722752843327,-1091.57771247,0.0001469,2]
[334085097,1722752843348,-951.69950854,0.00015,2]
[334085098,1722752843369,-367.88690048,0.00015202,2]
[334085099,1722752843390,-153.0635694,0.000153,2]
[334085100,1722752843411,-366.4812016,0.000153,2]
[334085101,1722752843432,-300.0,0.00015374,2]
[334085102,1722752843455,-21.28255817,0.00015374,2]
[334085122,1722752953342,150.5,0.000178,120]
[334085124,1722752953821,150.5,0.0001779,120]
[334085125,1722752954327,150.5,0.0001778,120]
[334085126,1722752954811,150.5,0.0002429,120]
[334085127,1722752955297,248.0,0.0002428,120]
[334085156,1722753039247,-818.75508754,0.00015,2]
[334085158,1722753039259,-651.30631796,0.00015,2]
[334085189,1722753043822,-92.77812961,0.00015,2]
[334085190,1722753043834,-1007.70848497,0.00015,2]
[334085191,1722753043846,-697.02260707,0.00015067,2]
[334085192,1722753043856,-258.44048858,0.00015211,2]
[334085193,1722753043865,-3892.38675849,0.00015364,2]
[334085194,1722753043875,-300.0,0.00015373,2]
[334085195,1722753043884,-1186.61603896,0.00015375,2]
[334085196,1722753043894,-1186.61603894,0.00015378,2]
[334085197,1722753043903,-1186.61603894,0.0001538,2]
[334085198,1722753043915,-1186.61603894,0.00015383,2]
[334085199,1722753043924,-1941.54944805,0.00015384,2]
[334085200,1722753043934,-1186.61603894,0.00015385,2]
[334085201,1722753043943,-5000.0,0.0001539,2]
[334085202,1722753043952,-500.0,0.00015464,2]
[334085203,1722753043962,-500.0,0.00015464,2]
[334085204,1722753043972,-3987.54,0.00015464,2]
[334085205,1722753043981,-500.0,0.00015464,2]
[334085206,1722753043991,-500.0,0.00015464,2]
[334085207,1722753044002,-500.0,0.00015464,2]
[334085208,1722753044012,-500.0,0.00015464,2]
[334085209,1722753044021,-500.0,0.00015464,2]
[334085210,1722753044031,-500.0,0.00015464,2]
[334085211,1722753044041,-500.0,0.00015464,2]
[334085212,1722753044051,-500.0,0.00015464,2]
[334085213,1722753044061,-500.0,0.00015464,2]
[334085214,1722753044070,-500.0,0.00015464,2]
[334085215,1722753044079,-500.0,0.00015464,2]
[334085216,1722753044089,-500.0,0.00015464,2]
[334085217,1722753044099,-500.0,0.00015464,2]
[334085218,1722753044108,-500.0,0.00015464,2]
[334085219,1722753044117,-500.0,0.00015464,2]
[334085220,1722753044127,-500.0,0.00015464,2]
[334085221,1722753044137,-500.0,0.00015464,2]
[334085222,1722753044147,-500.0,0.00015464,2]
[334085223,1722753044156,-500.0,0.00015464,2]
[334085224,1722753044166,-500.0,0.00015464,2]
[334085225,1722753044175,-500.0,0.00015464,2]
[334085226,1722753044185,-500.0,0.00015464,2]
[334085227,1722753044194,-500.0,0.00015464,2]
[334085228,1722753044204,-500.0,0.00015464,2]
[334085229,1722753044214,-500.0,0.00015464,2]
[334085230,1722753044223,-500.0,0.00015464,2]
[334085231,1722753044232,-500.0,0.00015464,2]
[334085232,1722753044241,-500.0,0.00015464,2]
[334085233,1722753044251,-500.0,0.00015464,2]
[334085234,1722753044261,-500.0,0.00015464,2]
[334085235,1722753044270,-500.0,0.00015464,2]
[334085236,1722753044280,-500.0,0.00015464,2]
[334085237,1722753044289,-500.0,0.00015464,2]
[334085238,1722753044298,-500.0,0.00015464,2]
[334085239,1722753044307,-500.0,0.00015464,2]
[334085240,1722753044320,-500.0,0.00015464,2]
[334085241,1722753044330,-500.0,0.00015464,2]
[334085242,1722753044341,-500.0,0.00015464,2]
[334085243,1722753044352,-325.14685169,0.00015464,2]
[334085244,1722753044363,-500.0,0.00015464,2]
[334085245,1722753044374,-500.0,0.00015464,2]
[334085246,1722753044384,-500.0,0.00015464,2]
[334085247,1722753044393,-500.0,0.00015464,2]
[334085248,1722753044403,-500.0,0.00015464,2]
[334085249,1722753044414,-500.0,0.00015464,2]
[334085250,1722753044426,-500.0,0.00015464,2]
[334085251,1722753044437,-500.0,0.00015464,2]
[334085252,1722753044447,-500.0,0.00015464,2]
[334085253,1722753044459,-500.0,0.00015464,2]
[334085254,1722753044471,-500.0,0.00015464,2]
[334085255,1722753044482,-500.0,0.00015464,2]
[334085256,1722753044494,-500.0,0.00015464,2]
[334085257,1722753044505,-500.0,0.00015464,2]
[334085258,1722753044515,-500.0,0.00015464,2]
[334085259,1722753044526,-500.0,0.00015464,2]
[334085260,1722753044536,-500.0,0.00015464,2]
[334085261,1722753044548,-500.0,0.00015464,2]
[334085262,1722753044558,-500.0,0.00015464,2]
[334085263,1722753044568,-500.0,0.00015464,2]
[334085264,1722753044578,-500.0,0.00015464,2]
[334085265,1722753044587,-500.0,0.00015464,2]
[334085266,1722753044596,-500.0,0.00015464,2]
[334085267,1722753044605,-500.0,0.00015464,2]
[334085268,1722753044615,-500.0,0.00015464,2]
[334085269,1722753044625,-500.0,0.00015464,2]
[334085270,1722753044635,-500.0,0.00015464,2]
[334085271,1722753044645,-500.0,0.00015464,2]
[334085272,1722753044654,-650.0,0.00015464,2]
[334085273,1722753044663,-500.0,0.00015464,2]
[334085274,1722753044672,-500.0,0.00015464,2]
[334085275,1722753044682,-500.0,0.00015464,2]
[334085276,1722753044691,-38211.9313312,0.00015465,2]
[334085277,1722753044703,-19105.9656656,0.00015465,2]
[334085278,1722753044713,-19105.9656656,0.00015466,2]
[334085279,1722753044819,-19105.9656656,0.00015467,2]
[334085280,1722753044831,-504.12,0.0001547,2]
[334085281,1722753044847,-500.0,0.0001547,2]
[334085282,1722753044856,-2401.24,0.0001547,2]
[334085283,1722753044867,-500.0,0.0001547,2]
[334085284,1722753044878,-164.58997882,0.00015473,2]
[334085285,1722753044888,-200.0,0.00015473,2]
[334085286,1722753044898,-200.0,0.00015473,2]
[334085287,1722753044907,-38211.9313312,0.00015473,2]
[334085288,1722753044920,-232.25943797,0.00015473,2]
[334085289,1722753044931,-201.066308,0.00015473,2]
[334085290,1722753044942,-500.0,0.00015473,2]
[334085291,1722753044952,-576.75560835,0.00015473,2]
[334085292,1722753044962,-500.0,0.00015473,2]
[334085293,1722753044972,-500.0,0.00015473,2]
[334085294,1722753044982,-500.0,0.00015473,2]
[334085295,1722753044991,-500.0,0.00015473,2]
[334085296,1722753045000,-500.0,0.00015473,2]
[334085297,1722753045012,-500.0,0.00015473,2]
[334085298,1722753045023,-500.0,0.00015473,2]
[334085299,1722753045033,-500.0,0.00015473,2]
[334085300,1722753045042,-627.87021192,0.00015473,2]
[334085301,1722753045051,-500.0,0.00015473,2]
[334085302,1722753045061,-500.0,0.00015473,2]
[334085303,1722753045071,-500.0,0.00015473,2]
[334085304,1722753045080,-3543.91071742,0.00015474,5]
[334085305,1722753045091,-38211.9313312,0.00015474,2]
[334085306,1722753045100,-57317.8969969,0.00015475,2]
[334085307,1722753045109,-1117.33393,0.00015475,2]
[334085308,1722753045118,-1117.33393,0.00015475,2]
[334085309,1722753045127,-827.122794,0.00015475,2]
[334085310,1722753045137,-827.122794,0.00015475,2]
[334085311,1722753045146,-500.0,0.00015475,2]
[334085312,1722753045155,-500.0,0.00015475,2]
[334085313,1722753045165,-547.72,0.00015475,2]
[334085314,1722753045174,-643.45,0.00015475,2]
[334085315,1722753045183,-500.0,0.00015475,2]
[334085316,1722753045192,-500.0,0.00015475,2]
[334085317,1722753045203,-207.870821,0.00015475,2]
[334085318,1722753045212,-7324.86,0.00015475,2]
[334085319,1722753045221,-500.408509,0.00015475,2]
[334085320,1722753045230,-500.408509,0.00015475,2]
[334085321,1722753045240,-500.0,0.00015475,2]
[334085322,1722753045249,-500.0,0.00015475,2]
[334085323,1722753045258,-1162.13,0.00015475,2]
[334085324,1722753045268,-1924.576232,0.00015475,2]
[334085325,1722753045278,-1924.576232,0.00015475,2]
[334085326,1722753045287,-500.0,0.00015475,2]
[334085327,1722753045296,-500.0,0.00015475,2]
[334085328,1722753045305,-500.0,0.00015475,2]
[334085329,1722753045314,-1071.67,0.00015475,2]
[334085330,1722753045323,-982.911748,0.00015475,2]
[334085331,1722753045333,-982.911748,0.00015475,2]
[334085332,1722753045342,-5198.37,0.00015475,2]
[334085333,1722753045352,-241.514565,0.00015475,2]
[334085334,1722753045361,-982.911748,0.00015475,2]
[334085335,1722753045370,-982.911748,0.00015475,2]
[334085336,1722753045380,-241.514565,0.00015475,2]
[334085337,1722753045392,-2263.84,0.00015475,2]
[334085338,1722753045404,-710.967799,0.00015475,2]
[334085339,1722753045414,-710.967799,0.00015475,2]
[334085340,1722753045425,-710.967799,0.00015475,2]
[334085341,1722753045437,-710.967799,0.00015475,2]
[334085342,1722753045449,-151.0,0.00015475,2]
[334085343,1722753045460,-151.0,0.00015475,2]
[334085344,1722753045472,-619.210268,0.00015475,2]
[334085345,1722753045482,-619.210268,0.00015475,2]
[334085346,1722753045493,-1222.93,0.00015475,2]
[334085347,1722753045504,-619.210268,0.00015475,2]
[334085348,1722753045516,-619.210268,0.00015475,2]
[334085349,1722753045527,-749.33,0.00015475,2]
[334085350,1722753045538,-519.5,0.00015475,2]
[334085351,1722753045549,-1096.985204,0.00015475,2]
[334085352,1722753045559,-1096.985204,0.00015475,2]
[334085353,1722753045571,-245.977793,0.00015475,2]
[334085354,1722753045581,-1096.985204,0.00015475,2]
[334085355,1722753045591,-1096.985204,0.00015475,2]
[334085356,1722753045602,-500.0,0.00015475,2]
[334085357,1722753045613,-245.977793,0.00015475,2]
[334085358,1722753045624,-500.0,0.00015475,2]
[334085359,1722753045637,-500.0,0.00015475,2]
[334085360,1722753045647,-500.0,0.00015475,2]
[334085361,1722753045658,-500.0,0.00015475,2]
[334085362,1722753045669,-500.0,0.00015475,2]
[334085363,1722753045679,-1117.33393,0.00015476,2]
[334085364,1722753045689,-1117.33393,0.00015476,2]
[334085365,1722753045701,-1117.33393,0.00015476,2]
[334085366,1722753045711,-1117.33393,0.00015476,2]
[334085367,1722753045721,-827.122794,0.00015476,2]
[334085368,1722753045733,-827.122794,0.00015476,2]
[334085369,1722753045742,-827.122794,0.00015476,2]
[334085370,1722753045753,-827.122794,0.00015476,2]
[334085371,1722753045763,-500.408509,0.00015476,2]
[334085372,1722753045774,-500.408509,0.00015476,2]
[334085373,1722753045785,-500.408509,0.00015476,2]
[334085374,1722753045797,-500.408509,0.00015476,2]
[334085375,1722753045808,-1924.576232,0.00015476,2]
[334085376,1722753045817,-1924.576232,0.00015476,2]
[334085377,1722753045827,-1924.576232,0.00015476,2]
[334085378,1722753045841,-1924.576232,0.00015476,2]
[334085379,1722753045851,-982.911748,0.00015476,2]
[334085380,1722753045862,-982.911748,0.00015476,2]
[334085381,1722753045871,-241.514565,0.00015476,2]
[334085382,1722753045882,-241.514565,0.00015476,2]
[334085383,1722753045891,-982.911748,0.00015476,2]
[334085384,1722753045901,-982.911748,0.00015476,2]
[334085385,1722753045911,-241.514565,0.00015476,2]
[334085386,1722753045924,-241.514565,0.00015476,2]
[334085387,1722753045936,-710.967799,0.00015476,2]
[334085388,1722753045945,-710.967799,0.00015476,2]
[334085389,1722753045955,-710.967799,0.00015476,2]
[334085390,1722753045964,-710.967799,0.00015476,2]
[334085391,1722753045974,-151.0,0.00015476,2]
[334085392,1722753045984,-151.0,0.00015476,2]
[334085393,1722753045993,-619.210268,0.00015476,2]
[334085394,1722753046005,-619.210268,0.00015476,2]
[334085395,1722753046015,-619.210268,0.00015476,2]
[334085396,1722753046025,-619.210268,0.00015476,2]
[334085397,1722753046035,-1096.985204,0.00015476,2]
[334085398,1722753046045,-1096.985204,0.00015476,2]
[334085399,1722753046054,-245.977793,0.00015476,2]
[334085400,1722753046065,-245.977793,0.00015476,2]
[334085401,1722753046074,-1096.985204,0.00015476,2]
[334085402,1722753046084,-1096.985204,0.00015476,2]
[334085403,1722753046095,-245.977793,0.00015476,2]
[334085404,1722753046105,-245.977793,0.00015476,2]
[334085405,1722753046115,-1117.33393,0.0001548,2]
[334085406,1722753046125,-1117.33393,0.0001548,2]
[334085407,1722753046134,-827.122794,0.0001548,2]
[334085408,1722753046145,-827.122794,0.0001548,2]
[334085409,1722753046154,-500.408509,0.0001548,2]
[334085410,1722753046165,-500.408509,0.0001548,2]
[334085411,1722753046175,-1924.576232,0.0001548,2]
[334085412,1722753046187,-1924.576232,0.0001548,2]
[334085413,1722753046199,-241.514565,0.0001548,2]
[334085414,1722753046210,-241.514565,0.0001548,2]
[334085415,1722753046221,-245.977793,0.0001548,2]
[334085416,1722753046233,-245.977793,0.0001548,2]
[334085417,1722753046245,-1384.369347,0.00015481,2]
[334085418,1722753046255,-1384.369347,0.00015481,2]
[334085419,1722753046267,-1384.369347,0.00015481,2]
[334085420,1722753046276,-1384.369347,0.00015481,2]
[334085421,1722753046286,-151.0,0.00015481,2]
[334085422,1722753046295,-151.0,0.00015481,2]
[334085423,1722753046305,-194.953276,0.00015481,2]
[334085424,1722753046315,-194.953276,0.00015481,2]
[334085426,1722753046325,-194.953276,0.00015481,2]
[334085428,1722753046335,-194.953276,0.00015481,2]
[334085429,1722753046344,-982.911748,0.00015481,2]
[334085430,1722753046353,-982.911748,0.00015481,2]
[334085431,1722753046363,-710.967799,0.00015481,2]
[334085432,1722753046372,-710.967799,0.00015481,2]
[334085433,1722753046382,-151.0,0.00015481,2]
[334085434,1722753046392,-619.210268,0.00015481,2]
[334085435,1722753046401,-619.210268,0.00015481,2]
[334085436,1722753046411,-1096.985204,0.00015481,2]
[334085437,1722753046421,-1096.985204,0.00015481,2]
[334085438,1722753046430,-7324.86,0.00015482,2]
[334085440,1722753046439,-500.0,0.00015483,2]
[334085442,1722753046449,-500.0,0.00015483,2]
[334085443,1722753046459,-500.0,0.00015483,2]
[334085445,1722753046471,-584.45319799,0.00015483,2]
[334085447,1722753046482,-500.0,0.00015483,2]
[334085448,1722753046491,-500.0,0.00015483,2]
[334085449,1722753046503,-500.0,0.00015483,2]
[334085450,1722753046514,-500.0,0.00015483,2]
[334085451,1722753046525,-500.0,0.00015483,2]
[334085452,1722753046535,-511.01073762,0.00015483,2]
[334085453,1722753046546,-500.0,0.00015483,2]
[334085454,1722753046556,-508.42283794,0.00015483,2]
[334085455,1722753046567,-500.0,0.00015483,2]
[334085456,1722753046577,-500.0,0.00015483,2]
[334085457,1722753046588,-500.0,0.00015483,2]
[334085458,1722753046598,-500.0,0.00015483,2]
[334085459,1722753046608,-500.0,0.00015483,2]
[334085460,1722753046619,-500.0,0.00015483,2]
[334085461,1722753046628,-500.0,0.00015483,2]
[334085462,1722753046642,-500.0,0.00015483,2]
[334085463,1722753046652,-500.0,0.00015483,2]
[334085464,1722753046663,-532.14277919,0.00015483,2]
[334085465,1722753046672,-500.0,0.00015483,2]
[334085466,1722753046682,-500.0,0.00015483,2]
[334085467,1722753046692,-515.27126426,0.00015483,2]
[334085468,1722753046702,-500.0,0.00015483,2]
[334085469,1722753046712,-500.0,0.00015483,2]
[334085471,1722753046721,-500.0,0.00015483,2]
[334085473,1722753046731,-500.0,0.00015483,2]
[334085475,1722753046741,-500.0,0.00015483,2]
[334085477,1722753046751,-500.0,0.00015483,2]
[334085479,1722753046761,-500.0,0.00015483,2]
[334085480,1722753046771,-151.0,0.00015483,2]
[334085481,1722753046780,-174.91484692,0.00015483,2]
[334085482,1722753046790,-500.0,0.00015483,2]
[334085483,1722753046802,-500.0,0.00015483,2]
[334085484,1722753046814,-500.0,0.00015483,2]
[334085485,1722753046824,-2439.218484,0.00015483,2]
[334085486,1722753046833,-500.0,0.00015483,2]
[334085487,1722753046847,-503.71296841,0.00015483,2]
[334085488,1722753046858,-537.435964,0.00015483,2]
[334085489,1722753046868,-537.435964,0.00015483,2]